bitfinex/quotes_ETHUSD_20241105
["timestamp","ask_amount","ask_price","bid_price","bid_amount"]
[1730839466058,0.05541663,2434.9,2434.8,4.86691]
[1730839466267,2.49607001,2435.3,2434.9,4.10679]
[1730839466416,10.36594447,2435.4,2435.2,4.10643]
[1730839466417,1.71577001,2435.4,2435.2,4.10643]
[1730839466613,1.71577001,2435.5,2435.2,4.10643]
[1730839467730,1.71577001,2435.5,2435.1,4.86647]
[1730839467918,1.71577001,2435.5,2435.1,4.86641]
[1730839468360,1.71577001,2435.5,2435.2,4.10642]
[1730839468669,1.71577001,2435.5,2435.3,4.10623]
[1730839468819,1.71577001,2435.5,2435.3,5.003485]
[1730839469022,0.7803,2435.6,2435.3,0.897255]
[1730839469023,0.05370909,2435.4,2435.3,0.897255]
[1730839469224,0.05370909,2435.4,2435.2,4.10631]
[1730839469567,2.49607001,2435.6,2435.3,4.10618]
[1730839470145,0.7803,2435.6,2435.3,4.10618]
[1730839470460,1.71577001,2435.7,2435.4,0.7996]
[1730839471038,1.71577001,2435.7,2435.5,4.10593]
[1730839471761,1.71577001,2435.8,2435.5,4.10593]
[1730839472527,0.05239127,2435.7,2435.5,4.10593]
[1730839472734,1.71577001,2435.8,2435.5,4.10593]
[1730839472933,0.05226693,2435.6,2435.5,4.10593]
[1730839473139,1.71577001,2435.8,2435.5,4.10593]
[1730839473333,0.05053743,2435.6,2435.5,4.10593]
[1730839473563,1.71577001,2435.8,2435.5,4.10593]
[1730839473762,0.05050435,2435.6,2435.5,4.10593]
[1730839474075,1.71577001,2435.8,2435.5,4.10593]
[1730839474240,0.05047126,2435.6,2435.5,4.10593]
[1730839474482,1.71577001,2435.8,2435.5,4.10593]
[1730839474663,0.05043818,2435.6,2435.3,4.10613]
[1730839474867,1.71577001,2435.7,2435.3,4.10613]
[1730839475071,0.05028073,2435.5,2435.3,4.10613]
[1730839475273,1.71577001,2435.7,2435.3,4.10613]
[1730839475473,0.05035488,2435.4,2435.3,4.10613]
[1730839475972,1.71577001,2435.7,2435.5,4.1059]
[1730839476125,1.71577001,2435.7,2435.3,4.10612]
[1730839476327,1.71577001,2435.8,2435.3,4.10612]
[1730839476555,1.71577001,2435.7,2435.3,8.21228]
[1730839476862,1.71577001,2435.8,2435.6,4.10573]
[1730839477076,1.71577001,2435.8,2435.4,4.10597]
[1730839478484,1.71577001,2435.8,2435.4,8.21197]
[1730839478642,1.71577001,2435.8,2435.5,4.10588]
[1730839479235,4.89468,2435.7,2435.2,4.1063]
[1730839479687,4.10576,2435.6,2435.0,0.8114]
[1730839479982,4.15647973,2435.6,2435.0,4.91806]
[1730839480298,0.789,2435.5,2435.1,4.10658]
[1730839480631,0.05040483,2435.4,2435.1,4.4567216]
[1730839480829,0.05040483,2435.4,2435.1,4.10658]
[1730839481070,0.05040483,2435.4,2435.2,4.10641]
[1730839481271,0.05040483,2435.4,2435.3,4.10627]
[1730839481632,0.8062,2435.7,2435.2,4.60640354]
[1730839481834,0.05060335,2435.4,2435.3,4.10627]
[1730839482280,0.8062,2435.7,2435.3,4.10627]
[1730839482496,0.05085206,2435.6,2435.3,4.10627]
[1730839486134,0.05085206,2435.6,2435.4,4.10596]
[1730839486543,0.05085206,2435.6,2435.3,4.91207]
[1730839486728,0.05085206,2435.6,2435.5,4.10593]
[1730839486915,2.9158277,2435.9,2435.5,4.10593]
[1730839486916,2.47917001,2435.9,2435.5,4.10593]
[1730839487238,0.05122483,2435.8,2435.5,4.10593]
[1730839488047,1.76699484,2435.8,2435.5,4.10593]
[1730839490770,5.87249484,2435.8,2435.4,4.10607]
[1730839491064,1.76699484,2435.8,2435.4,8.21208]
[1730839491263,1.76699484,2435.8,2435.5,4.10592]
[1730839495775,0.05122483,2435.8,2435.5,4.10592]
[1730839496331,0.05122483,2435.8,2435.6,4.10563]
[1730839497250,0.05122483,2435.8,2435.7,4.10559]
[1730839497968,0.8257,2435.7,2434.7,0.7568]
[1730839498262,0.8257,2435.5,2435.1,4.10651]
[1730839498462,2.54147001,2435.5,2435.1,4.10651]
[1730839498662,0.0489093,2435.4,2435.1,4.10651]
[1730839499101,0.0489093,2435.4,2435.2,0.35050554]
[1730839499386,0.0489093,2435.4,2435.2,4.1064]
[1730839500662,0.0489093,2435.4,2435.3,4.10627]
[1730839501152,0.0489093,2435.4,2435.3,4.45688081]
[1730839501346,0.7676,2435.6,2435.3,0.35061081]
[1730839501546,0.7676,2435.3,2434.6,0.56090936]
[1730839501775,0.04796648,2435.2,2435.1,4.1066]
[1730839502287,2.1532428,2435.6,2435.3,4.10621]
[1730839502288,1.71577001,2435.5,2435.3,4.10621]
[1730839502490,1.71577001,2435.5,2435.4,0.7506]
[1730839502650,1.71577001,2435.5,2435.4,4.8567]
[1730839502846,3.86901281,2435.8,2435.5,4.10593]
[1730839503200,3.86901281,2435.8,2435.4,0.7506]
[1730839503201,2.1532428,2435.8,2435.7,4.10559]
[1730839503378,2.1532428,2435.8,2435.7,4.85619]
[1730839503900,2.1532428,2435.9,2435.7,4.85619]
[1730839504071,2.1532428,2435.9,2435.6,0.35011759]
[1730839504396,4.94574078,2435.8,2435.6,0.35011759]
[1730839504598,0.70989836,2435.7,2435.6,0.35011759]
[1730839504779,4.81548836,2435.7,2435.6,0.35011759]
[1730839504987,4.86493481,2435.7,2435.1,4.85714]
[1730839505298,4.15503645,2435.7,2435.2,0.35026514]
[1730839505469,4.15503645,2435.7,2435.3,0.35026514]
[1730839505794,0.7848,2435.5,2435.2,0.35038844]
[1730839506004,4.89082,2435.5,2435.0,4.10666]
[1730839506293,0.04901131,2435.4,2435.1,0.35037]
[1730839506497,0.04901131,2435.4,2435.0,4.10666]
[1730839506666,0.04901131,2435.4,2435.1,0.35020858]
[1730839506871,0.04901131,2435.4,2435.0,4.10666]
[1730839507064,0.04901131,2435.4,2435.1,0.92566226]
[1730839507297,0.04901131,2435.4,2435.1,0.65760402]
[1730839507471,0.04901131,2435.4,2435.2,4.45652848]
[1730839507673,0.04901131,2435.4,2435.2,4.10641]
[1730839508789,0.04901131,2435.4,2435.1,0.57547632]
[1730839508989,0.04901131,2435.4,2435.2,0.34996617]
[1730839509168,0.04901131,2435.4,2435.0,4.10666]
[1730839509375,0.04901131,2435.4,2435.1,5.08787353]
[1730839509590,0.04901131,2435.4,2435.1,0.63147123]
[1730839510099,0.04901131,2435.4,2435.1,4.73806123]
[1730839511199,0.04901131,2435.4,2435.1,0.63147123]
[1730839511404,0.04901131,2435.4,2435.0,4.10666]
[1730839511605,0.04901131,2435.4,2435.1,0.34933172]
[1730839511756,0.04901131,2435.4,2435.0,4.10666]
[1730839511957,0.04901131,2435.4,2435.1,0.34927471]
[1730839512198,0.04901131,2435.4,2435.0,4.10666]
[1730839512400,0.04901131,2435.4,2435.1,0.34939836]
[1730839512601,0.04901131,2435.4,2435.0,8.21333]
[1730839512799,0.04901131,2435.4,2435.1,1.39973233]
[1730839513015,0.04901131,2435.4,2435.1,1.05026494]
[1730839513542,0.04901131,2435.4,2435.1,5.15685494]
[1730839513700,0.04901131,2435.4,2435.2,4.18841696]
[1730839513901,0.04901131,2435.4,2435.3,4.10627]
[1730839514152,6.69192228,2435.9,2435.6,4.10573]
[1730839514153,3.34634228,2435.9,2435.6,4.10573]
[1730839514442,2.15536584,2435.8,2435.7,4.10559]
[1730839514602,1.72413842,2435.8,2435.7,4.10559]
[1730839516660,1.72413842,2436.0,2435.8,4.10542]
[1730839517007,1.72413842,2436.0,2435.7,4.10559]
[1730839517212,1.72413842,2436.0,2435.8,4.1054]
[1730839517405,1.72413842,2436.0,2435.9,4.10525]
[1730839517646,1.72413842,2436.0,2435.7,4.591529]
[1730839517853,1.72413842,2436.0,2435.8,4.10541]
[1730839520236,0.04995191,2435.9,2435.8,4.10541]
[1730839520408,0.04995191,2435.9,2435.8,5.0506039]
[1730839520608,0.04995191,2435.9,2435.8,0.9451939]
[1730839520939,0.04995191,2435.9,2435.6,4.86067]
[1730839522360,0.04995191,2435.9,2435.8,4.10542]
[1730839522515,0.04995191,2435.9,2435.7,4.10544]
[1730839522706,0.04995191,2435.9,2435.5,4.10588]
[1730839522910,0.04995191,2435.9,2435.6,4.10575]
[1730839523252,0.04995191,2435.9,2435.5,4.10588]
[1730839523868,0.7635,2435.8,2435.3,4.10613]
[1730839524155,4.15505238,2435.7,2435.2,4.10643]
[1730839524354,0.7833,2435.6,2435.2,4.10643]
[1730839524522,0.04900434,2435.5,2435.1,4.10647]
[1730839525262,4.15499434,2435.5,2435.0,4.66483116]
[1730839525550,4.15499434,2435.5,2435.1,4.10658]
[1730839525551,0.04900434,2435.5,2435.1,4.10658]
[1730839525751,1.77314276,2435.5,2435.1,4.10658]
[1730839525962,0.04900434,2435.5,2435.1,4.10658]
[1730839526253,7.17128246,2435.5,2435.0,4.66483116]
[1730839526457,4.10613,2435.4,2435.0,0.55807116]
[1730839526751,0.04868634,2435.3,2435.0,4.66472116]
[1730839526911,7.12227812,2435.5,2435.0,4.66472116]
[1730839527106,0.7791,2435.3,2435.0,4.66472116]
[1730839527328,0.04856195,2435.2,2435.0,4.66472116]
[1730839527513,0.7791,2435.3,2435.0,4.66472116]
[1730839527824,0.04856195,2435.2,2435.0,8.77141116]
[1730839528164,0.7791,2435.3,2435.0,8.77141116]
[1730839528343,0.0487145,2435.2,2435.0,8.77141116]
[1730839528506,0.7791,2435.3,2435.0,4.66472116]
[1730839528706,0.0487145,2435.2,2435.0,8.77139116]
[1730839528910,0.7791,2435.3,2435.0,4.66472116]
[1730839529110,0.0487145,2435.2,2435.0,4.66472116]
[1730839529439,0.7791,2435.3,2435.0,4.66472116]
[1730839529615,0.04692582,2435.1,2435.0,4.66472116]
[1730839529812,0.7791,2435.3,2435.0,4.66472116]
[1730839530019,0.04679506,2435.1,2435.0,4.66472116]
[1730839530216,0.7791,2435.3,2435.0,4.66472116]
[1730839530839,0.04691946,2435.2,2435.0,8.85351808]
[1730839531039,0.04691946,2435.2,2435.0,8.77139116]
[1730839531241,0.7791,2435.3,2435.0,8.77139116]
[1730839531416,0.04679506,2435.1,2435.0,4.66472116]
[1730839531617,1.72413842,2435.5,2435.4,4.1061]
[1730839531930,0.807,2435.8,2435.4,4.1061]
[1730839532637,4.10607,2435.5,2435.0,0.55807116]
[1730839532836,0.491307,2435.4,2435.1,4.1066]
[1730839533018,7.06660419,2435.6,2435.1,4.1066]
[1730839533363,1.72413842,2435.5,2435.1,4.1066]
[1730839534045,2.53113842,2435.6,2435.2,4.10634]
[1730839534357,0.807,2435.6,2435.2,4.10634]
[1730839534884,0.04375655,2435.5,2435.2,4.10634]
[1730839535785,0.04375655,2435.5,2435.1,4.1066]
[1730839536491,0.7595,2435.4,2435.1,4.1066]
[1730839536889,6.25890499,2435.6,2435.1,4.10652]
[1730839536890,0.04344574,2435.3,2435.1,4.10652]
[1730839537052,0.04344574,2435.3,2435.1,4.91022]
[1730839537395,2.48363842,2435.6,2435.2,4.10643]
[1730839537779,2.48363842,2435.6,2434.3,4.328]
[1730839537780,0.7595,2435.3,2434.2,0.0598954]
[1730839537981,0.7595,2435.3,2434.3,4.45600844]
[1730839537982,5.83100842,2435.0,2434.3,4.45600844]
[1730839538164,0.0426401,2434.9,2434.4,0.34811334]
[1730839538366,0.0426401,2434.9,2434.2,0.8635954]
[1730839538367,0.0426401,2434.9,2434.5,4.18967113]
[1730839538670,4.1495901,2434.9,2434.4,4.10762]
[1730839539012,0.8144,2434.8,2434.4,4.10778]
[1730839539167,1.28782935,2434.8,2434.2,9.0796354]
[1730839539362,0.04221657,2434.7,2434.2,9.0796354]
[1730839539874,0.04221657,2434.7,2434.2,4.9716154]
[1730839540255,0.04221657,2434.7,2434.2,9.0796554]
[1730839540589,0.04221657,2434.7,2434.2,4.1679154]
[1730839540590,4.14952657,2434.7,2434.2,4.1679154]
[1730839544435,0.7749,2434.5,2434.2,0.0598954]
[1730839544946,0.04169365,2434.4,2434.2,0.0598954]
[1730839546264,0.04169365,2434.4,2434.3,4.10795]
[1730839546617,4.88218,2434.7,2434.3,4.10795]
[1730839546818,0.04203794,2434.4,2434.3,4.10795]
[1730839547012,4.88218,2434.7,2434.3,4.10795]
[1730839547310,0.7749,2434.7,2434.3,4.10795]
[1730839547515,0.04230957,2434.6,2434.4,4.10778]
[1730839548662,0.04230957,2434.6,2434.5,4.10761]
[1730839548961,0.04230957,2434.6,2434.4,4.86397]
[1730839549254,4.10702,2434.9,2434.4,4.86397]
[1730839549555,0.04218512,2434.5,2434.4,4.86397]
[1730839549713,4.10711,2434.8,2434.3,4.10795]
[1730839550146,0.7916,2434.6,2434.3,4.10795]
[1730839550465,0.04235619,2434.5,2434.3,4.10795]
[1730839551018,0.04235619,2434.5,2434.2,0.0598954]
[1730839551232,4.14997619,2434.5,2434.2,0.0598954]
[1730839551511,0.04235619,2434.5,2434.2,4.1680054]
[1730839551710,0.04235619,2434.5,2434.3,4.93279]
[1730839552151,0.7778,2434.8,2434.5,4.10755]
[1730839552750,6.97250226,2435.2,2434.6,0.0821433]
[1730839552751,0.8213,2435.1,2434.6,0.0821433]
[1730839553053,4.10696,2434.9,2434.3,4.87874]
[1730839553260,0.903503,2434.8,2434.3,4.87874]
[1730839553557,0.8213,2434.7,2434.2,4.1679154]
[1730839553791,0.04204778,2434.6,2434.2,4.1679154]
[1730839554999,0.04204778,2434.6,2434.2,4.25006786]
[1730839555504,4.10765,2434.5,2434.2,0.0598954]
[1730839555786,0.04204778,2434.6,2434.2,0.0598954]
[1730839555787,4.10795,2434.3,2434.2,0.0598954]
[1730839555990,4.94466703,2434.3,2434.2,0.0598954]
[1730839556494,0.83671703,2434.3,2434.2,0.0598954]
[1730839556895,4.94466703,2434.3,2434.2,0.0598954]
[1730839557184,0.83671703,2434.3,2434.2,0.0598954]
[1730839557436,5.43912673,2434.3,2434.2,0.0598954]
[1730839559278,10.43912673,2434.3,2434.2,0.0598954]
[1730839564602,10.86693043,2434.3,2434.2,0.0598954]
[1730839565064,13.86693043,2434.3,2434.2,0.0598954]
[1730839565169,14.41693043,2434.3,2434.2,0.0598954]
[1730839565505,14.41693043,2434.3,2434.2,5.4e-06]
[1730839565676,16.14106885,2434.3,2434.2,5.4e-06]
[1730839565885,14.41693043,2434.3,2434.2,5.4e-06]
[1730839566078,16.55961226,2434.3,2434.2,5.4e-06]
[1730839566418,4.11015,2433.0,2432.9,0.0598954]
[1730839566770,0.03846259,2433.0,2432.9,0.0598954]
[1730839567216,4.90318,2433.3,2432.9,0.0598954]
[1730839567217,4.1101,2433.1,2432.9,0.0598954]
[1730839567412,0.03881067,2433.0,2432.9,0.0598954]
[1730839567568,4.90314,2433.3,2432.9,0.0598954]
[1730839568213,4.90278,2433.5,2432.9,0.0598954]
[1730839568569,4.90238,2433.7,2433.1,4.10987]
[1730839568907,0.03973679,2433.6,2433.0,0.792]
[1730839569211,0.03973679,2433.6,2433.1,4.10987]
[1730839569380,0.03973679,2433.6,2433.1,4.19202259]
[1730839569565,0.03973679,2433.6,2433.2,4.1097]
[1730839569766,0.03973679,2433.6,2433.2,5.1012637]
[1730839571872,1.71341553,2434.0,2433.8,4.87728]
[1730839572312,1.71341553,2434.0,2433.8,0.7685]
[1730839572616,0.04025071,2433.9,2433.8,4.8773]
[1730839572817,0.04025071,2433.9,2433.8,5.775932]
[1730839573919,0.8002,2434.3,2433.9,4.10851]
[1730839574281,0.7511,2434.5,2434.1,4.10819]
[1730839574485,4.85853,2434.7,2434.1,8.21638]
[1730839574805,5.7511,2434.7,2434.0,4.10846]
[1730839575005,4.10753,2434.6,2434.0,4.10846]
[1730839575313,4.10753,2434.6,2433.9,4.10852]
[1730839575480,4.10722,2434.8,2434.3,0.8061]
[1730839575680,0.8036,2434.9,2434.3,0.8061]
[1730839575880,0.8036,2434.9,2434.4,4.10768]
[1730839576182,0.04153459,2434.8,2434.4,4.10768]
[1730839576913,0.04153459,2434.8,2434.5,4.10753]
[1730839577244,4.10685,2435.0,2434.4,5.009858]
[1730839577404,0.04141015,2434.7,2434.5,4.10751]
[1730839577605,9.01341,2435.1,2434.5,4.10751]
[1730839577827,0.04162837,2434.6,2434.5,4.10751]
[1730839578155,4.10681,2435.0,2434.5,4.10751]
[1730839578439,5.03299838,2435.0,2434.5,4.10751]
[1730839578743,0.04200168,2434.9,2434.5,4.10751]
[1730839579106,0.04200168,2434.9,2434.6,0.7947]
[1730839579307,0.04200168,2434.9,2434.7,4.10726]
[1730839579606,0.04187725,2434.8,2434.6,4.90212]
[1730839580020,4.10663,2435.1,2434.6,4.90212]
[1730839580220,0.04175282,2434.7,2434.6,4.90212]
[1730839580421,4.10663,2435.1,2434.6,4.90212]
[1730839580649,0.04175282,2434.7,2434.6,4.90212]
[1730839580807,4.10663,2435.1,2434.6,4.90212]
[1730839581011,0.04175282,2434.7,2434.3,4.93086]
[1730839581319,4.14913282,2434.7,2434.0,4.93143]
[1730839581539,4.10738,2434.7,2434.0,4.93143]
[1730839581716,4.14910837,2434.6,2434.1,4.10824]
[1730839582142,4.1077,2434.5,2434.0,0.823]
[1730839582361,4.52280284,2434.4,2434.0,0.823]
[1730839582506,4.56436916,2434.4,2434.0,0.823]
[1730839582711,0.45649916,2434.4,2434.0,4.93146]
[1730839582912,0.45649916,2434.4,2434.0,4.93136]
[1730839583413,0.45649916,2434.4,2434.0,9.03972]
[1730839584652,0.45649916,2434.4,2434.0,4.93136]
[1730839585015,4.56430916,2434.4,2434.0,4.93136]
[1730839585413,0.45649916,2434.4,2434.0,9.03971]
[1730839585747,0.04156632,2434.4,2434.0,9.03971]
[1730839585959,0.04156632,2434.4,2434.0,4.93135]
[1730839586139,0.04156632,2434.4,2434.2,4.10811]
[1730839586315,0.04156632,2434.4,2434.0,0.823]
[1730839586316,0.04156632,2434.4,2434.1,4.10829]
[1730839586623,4.1073,2434.7,2434.0,4.93135]
[1730839586624,0.04144184,2434.3,2434.0,4.93135]
[1730839586959,0.04144184,2434.3,2434.2,4.10811]
[1730839587163,4.1073,2434.7,2434.2,8.21622]
[1730839587312,0.04144184,2434.3,2434.2,4.10811]
[1730839587516,4.1073,2434.7,2434.2,4.10811]
[1730839587749,0.04144184,2434.3,2434.2,4.10811]
[1730839587947,4.9007,2434.4,2433.8,0.8302]
[1730839588158,4.63954184,2434.3,2433.8,4.9389]
[1730839588325,0.04144184,2434.3,2433.9,4.10861]
[1730839588528,0.04144184,2434.3,2434.2,4.10812]
[1730839588714,0.04144184,2434.3,2434.2,4.93832]
[1730839588923,4.10729,2434.7,2434.2,4.93832]
[1730839589158,0.04140291,2434.3,2434.2,4.93832]
[1730839589311,4.90012,2434.8,2433.5,7.61528653]
[1730839589312,4.10746,2434.6,2433.9,4.10852]
[1730839589657,0.410746,2434.5,2434.2,4.10802]
[1730839589862,0.04165185,2434.5,2434.2,4.10802]
[1730839590153,8.21506,2434.6,2434.1,4.10818]
[1730839590358,0.04152739,2434.4,2434.1,4.10818]
[1730839590656,0.04140291,2434.3,2434.1,8.21637]
[1730839590862,4.10753,2434.6,2434.1,4.10818]
[1730839591011,0.04127842,2434.2,2434.1,4.10818]
[1730839591214,4.10753,2434.6,2434.1,4.10818]
[1730839591421,0.04165185,2434.5,2434.1,4.10818]
[1730839591625,0.04165185,2434.5,2434.1,8.21639]
[1730839591875,0.04165185,2434.5,2434.2,4.10799]
[1730839592025,4.90013,2434.8,2434.3,4.10788]
[1730839592230,0.04149624,2434.4,2434.3,9.04593]
[1730839592464,4.90013,2434.8,2434.3,9.04593]
[1730839592649,0.04149624,2434.4,2434.3,4.93805]
[1730839592976,4.90013,2434.8,2434.3,5.9331369]
[1730839593146,0.04149624,2434.4,2434.3,5.9331369]
[1730839593460,4.90013,2434.8,2434.3,5.9331369]
[1730839593676,0.04149624,2434.4,2434.3,5.9331369]
[1730839593884,4.90013,2434.8,2434.3,5.9331369]
[1730839593885,4.89978,2435.0,2434.3,1.8252869]
[1730839594168,4.89978,2435.0,2434.5,4.10752]
[1730839594169,9.00664,2435.0,2434.5,4.10752]
[1730839594349,4.14922519,2434.9,2434.3,9.04584]
[1730839594557,4.14922519,2434.9,2434.4,5.012344]
[1730839594745,0.04216519,2434.9,2434.5,4.10754]
[1730839595105,0.04216519,2434.9,2434.5,4.10753]
[1730839595666,0.04216519,2434.9,2434.5,8.21506]
[1730839595965,0.04216519,2434.9,2434.5,4.10753]
[1730839596265,0.04216519,2434.9,2434.6,0.5012114]
[1730839596608,0.04216519,2434.9,2434.4,0.904584]
[1730839596875,4.14921519,2434.9,2434.4,5.012324]
[1730839597070,0.04216519,2434.9,2434.5,4.10761]
[1730839597742,4.14912519,2434.9,2434.5,4.10761]
[1730839597936,4.14912519,2434.9,2434.5,0.9950234]
[1730839598131,0.04216519,2434.9,2434.5,5.1026234]
[1730839600081,0.04216519,2434.9,2434.7,4.10723]
[1730839601490,0.04216519,2434.9,2434.8,4.10711]
[1730839601696,4.87447,2435.3,2434.8,4.10711]
[1730839601896,4.87447,2435.3,2434.9,0.821434]
[1730839602654,0.7682,2435.3,2434.9,4.928304]
[1730839603205,2.14594063,2435.6,2435.0,0.85273304]
[1730839603354,0.7682,2435.9,2435.5,4.10593]
[1730839603552,2.48161553,2436.1,2435.6,5.00387]
[1730839603770,0.7682,2436.1,2435.6,9.10951]
[1730839604178,0.7682,2436.1,2435.6,5.00387]
[1730839604404,0.7682,2436.1,2435.6,9.10949]
[1730839604715,0.7682,2436.3,2435.8,4.10541]
[1730839605013,0.7682,2436.3,2435.9,4.1051]
[1730839605183,9.10418,2436.6,2435.9,4.95779962]
[1730839605184,0.03956635,2436.2,2435.9,4.95779962]
[1730839605371,0.03956635,2436.2,2435.9,0.7706]
[1730839605571,8.20895,2436.4,2435.9,0.7706]
[1730839605799,0.0381437,2436.1,2435.9,0.7706]
[1730839605971,4.1046,2436.3,2435.9,0.7706]
[1730839606172,0.03806042,2436.0,2435.9,0.7706]
[1730839606403,4.10521,2436.0,2435.5,0.7708]
[1730839606577,4.14327042,2436.0,2435.5,4.87668]
[1730839607197,4.10534,2435.9,2435.5,0.7708]
[1730839607574,0.03781177,2435.8,2435.5,0.7708]
[1730839607769,0.86264795,2435.8,2435.5,0.7708]
[1730839608220,0.86264795,2435.8,2435.5,4.95882281]
[1730839608790,0.03781177,2435.8,2435.5,4.95882281]
[1730839608978,0.03781177,2435.8,2435.5,9.06464281]
[1730839609176,4.86394,2436.1,2435.5,8.98253]
[1730839609382,0.03768744,2435.7,2435.5,8.98253]
[1730839609610,4.86394,2436.1,2435.5,8.98253]
[1730839609777,0.03756309,2435.6,2435.5,4.87662]
[1730839609978,4.10513,2436.0,2435.5,0.7708]
[1730839610215,0.03756309,2435.6,2435.5,0.7708]
[1730839610401,4.10529,2435.9,2435.5,0.7708]
[1730839610592,0.03758786,2435.6,2435.5,0.7708]
[1730839611101,4.10529,2435.9,2435.5,0.7708]
[1730839611306,0.03758786,2435.6,2435.5,0.7708]
[1730839611619,4.10529,2435.9,2435.5,0.7708]
[1730839611916,0.03783654,2435.8,2435.5,4.87671]
[1730839612114,0.03783654,2435.8,2435.5,0.7708]
[1730839613114,0.03783654,2435.8,2435.4,4.89018]
[1730839613986,0.03783654,2435.8,2435.5,4.18802147]
[1730839614185,0.03783654,2435.8,2435.7,4.10559]
[1730839614405,4.93049,2436.3,2435.7,4.95419048]
[1730839614406,4.10477,2436.2,2435.7,4.95419048]
[1730839614705,4.93049,2436.3,2435.7,4.87209]
[1730839614906,0.03816664,2436.1,2435.7,4.87209]
[1730839615084,4.93049,2436.3,2435.8,0.897782]
[1730839615290,0.03804233,2436.0,2435.8,0.897782]
[1730839615489,4.93049,2436.3,2435.8,5.003202]
[1730839615720,0.03791802,2435.9,2435.8,5.003202]
[1730839616029,4.93049,2436.3,2435.8,5.003202]
[1730839616236,9.0352,2436.3,2435.9,0.5769702]
[1730839616735,9.0352,2436.3,2435.8,5.003202]
[1730839616736,4.10551,2435.8,2435.4,1.708744]
[1730839616897,9.02183,2435.8,2435.4,1.708744]
[1730839617090,4.10563,2435.7,2435.4,0.899644]
[1730839617424,4.10563,2435.7,2435.3,4.10625]
[1730839617679,0.8108,2435.8,2435.3,4.10627]
[1730839617935,0.03772418,2435.6,2435.3,4.10627]
[1730839618102,0.8108,2435.8,2435.3,4.10627]
[1730839618425,0.8108,2435.8,2435.2,4.10634]
[1730839618426,0.03749856,2435.5,2435.2,4.10634]
[1730839618633,4.1056,2435.7,2435.3,0.491544]
[1730839618926,0.03762292,2435.6,2435.3,4.597794]
[1730839619535,4.91623,2435.8,2435.3,4.597794]
[1730839619823,0.03749856,2435.5,2435.4,4.18818531]
[1730839620027,4.10535,2435.9,2435.4,4.18818383]
[1730839620233,4.10535,2435.9,2435.4,5.06678161]
[1730839620386,4.14333276,2435.8,2435.4,0.87859778]
[1730839620583,4.14333276,2435.8,2435.4,0.08211531]
[1730839620584,0.03790276,2435.8,2435.4,0.08211531]
[1730839620791,0.03790276,2435.8,2435.4,4.10601]
[1730839621049,0.03790276,2435.8,2435.5,0.7905]
[1730839621187,0.03790276,2435.8,2435.5,4.89639]
[1730839621605,0.03790276,2435.8,2435.5,4.89633]
[1730839621805,4.8896,2436.0,2435.6,4.10575]
[1730839622004,4.10486,2436.2,2435.6,4.10575]
[1730839622005,0.03777843,2435.7,2435.6,4.10575]
[1730839622252,4.10492,2436.1,2435.5,1.7398884]
[1730839622454,4.10492,2436.1,2435.6,4.1056]
[1730839622455,0.03777843,2435.7,2435.6,4.1056]
[1730839623049,4.10511,2436.0,2435.6,4.1056]
[1730839623246,0.03777843,2435.7,2435.6,5.10074684]
[1730839623452,1.21233799,2436.3,2435.6,0.99514684]
[1730839623609,4.10433,2436.5,2436.0,9.03378]
[1730839623806,4.10433,2436.5,2436.0,4.92879]
[1730839624033,4.10433,2436.5,2436.0,9.03378]
[1730839624234,4.10433,2436.5,2436.0,9.03377]
[1730839624646,4.10433,2436.5,2436.0,4.92878]
[1730839624942,5.008433,2436.5,2436.0,0.8238]
[1730839625195,4.10458,2436.3,2436.0,0.8238]
[1730839625362,4.10458,2436.3,2435.8,4.88198]
[1730839625506,0.03840001,2436.2,2435.8,8.98733]
[1730839625846,4.10458,2436.3,2435.8,4.88198]
[1730839626149,0.03840001,2436.2,2435.9,4.10523]
[1730839626303,4.10442,2436.4,2435.9,4.10523]
[1730839626650,0.03852429,2436.3,2435.9,4.10523]
[1730839627049,4.14311429,2436.3,2435.8,4.88198]
[1730839627606,4.10503,2436.1,2435.6,4.90534]
[1730839627810,0.7674,2436.2,2435.4,4.106]
[1730839627811,4.1051,2436.0,2435.4,4.9057]
[1730839628010,4.1053,2435.9,2435.5,4.10591]
[1730839628512,0.03795726,2435.8,2435.4,4.9057]
[1730839628712,0.03795726,2435.8,2435.3,0.491544]
[1730839628713,4.8918,2435.7,2435.3,0.5611473]
[1730839628945,0.03770858,2435.6,2435.3,0.35078584]
[1730839629147,0.03770858,2435.6,2435.2,4.10631]
[1730839629436,0.03770858,2435.6,2435.3,0.35106244]
[1730839629877,0.03770858,2435.6,2435.4,4.10609]
[1730839630073,0.7958,2436.0,2435.6,4.10575]
[1730839631174,4.90094,2436.0,2435.5,0.8162]
[1730839631370,4.10537,2435.9,2435.4,4.10593]
[1730839631578,0.490117,2435.9,2435.4,4.10593]
[1730839631882,0.7958,2436.0,2435.5,4.45750266]
[1730839632081,0.7958,2436.0,2435.3,0.8162]
[1730839632374,0.7958,2436.0,2435.5,4.10582]
[1730839632574,0.03821919,2435.9,2435.6,0.3515267]
[1730839632747,0.03821919,2435.9,2435.5,4.66877274]
[1730839633076,0.03821919,2435.9,2435.6,0.35184543]
[1730839633230,0.03821919,2435.9,2435.7,0.35184543]
[1730839633435,0.03821919,2435.9,2435.5,5.06492727]
[1730839633672,0.03821919,2435.9,2435.6,0.35225031]
[1730839633856,0.03821919,2435.9,2435.7,0.35225031]
[1730839634057,0.03821919,2435.9,2435.5,5.06492727]
[1730839634269,4.14347919,2435.9,2435.6,0.91710273]
[1730839634477,4.14347919,2435.9,2435.7,0.3523598]
[1730839634774,4.14347919,2435.9,2435.5,0.56375315]
[1730839634978,4.14347919,2435.9,2435.6,0.3524007]
[1730839635158,4.14347919,2435.9,2435.7,0.3524007]
[1730839635351,4.14347919,2435.9,2435.5,4.66960315]
[1730839635550,0.03821919,2435.9,2435.6,4.45820758]
[1730839635741,0.03821919,2435.9,2435.7,0.35244758]
[1730839635938,0.03821919,2435.9,2435.8,4.10542]
[1730839636153,0.7958,2436.3,2435.9,4.10521]
[1730839636349,0.03867689,2436.2,2435.9,4.10521]
[1730839636583,0.7958,2436.3,2435.9,4.10521]
[1730839636584,0.7958,2436.3,2436.0,0.3524062]
[1730839636781,0.7958,2436.3,2435.9,4.10521]
[1730839636782,0.03852232,2436.1,2435.9,4.10521]